Cogmind - Beta 15 @@@ ROGUE MODE // 2025.08.21 @ 02:44:27 Player: OoferDoofums Result: Destroyed by P-70 Sage with Tesla Rifle Performance ------------- Evolutions (5) 2500 Regions Visited (5) 1000 Robots Destroyed (21) 105 Value Destroyed (628) 628 Prototype IDs (1) 20 Alien Tech Used (0) 0 Bonus (0) 0 TOTAL SCORE: 4253 Bonus ------- None Cogmind --------- Core Integrity 0/1000 Matter 116/300 Energy 99/100 System Corruption 7% Temperature Cool (0) Movement Core (50) Location -5/Factory Parts ------- > --- POWER (2) -------- (None) > --- PROPULSION (6) --- (None) > --- UTILITY (5) ------ (None) > --- WEAPON (4) ------- (None) > --- INVENTORY (5) ---- Micro Fission Core Wheel Heavy Plasma Cannon Peak State ------------ > --- POWER ------------ Light Nuclear Core Light Angular Momentum Engine > --- PROPULSION ------- Carbon-fiber Leg Thunder Leg Wheel Wheel Wheel Nuclear Pulse Thruster > --- UTILITY ---------- Heat Sink Small Storage Unit Structural Scanner Advanced ECM Suite System Restoration Module > --- WEAPON ----------- Subdweller Beam Cannon Plasma Cannon Advanced Plasma Cannon Heavy Flak Cannon > --- INVENTORY -------- Ion Engine Light Nuclear Core Wheel Combat Airjet Light Assault Rifle Subdweller Machine Gun [Rating: 54] Favorites ----------- Power Ion Engine Engine Ion Engine Power Core Light Nuclear Core Propulsion Wheel Leg Carbon-fiber Leg Wheel Wheel Hover Unit Combat Airjet Flight Unit Nuclear Pulse Thruster Utility Small Storage Unit Device Heat Sink Storage Small Storage Unit Protection Scrap Shield Weapon Grenade Launcher Energy Gun Small Laser Energy Cannon Subdweller Beam Cannon Ballistic Gun Autogun Ballistic Cannon Heavy Flak Cannon Launcher Grenade Launcher Special Weapon Mining Laser Build | -11 -10 -10 -9 -6 -5 ------- Run | Yrd Mat Sub Scr Fac Fac Slots Evolved 10 | . . . . 8 2 Power 1 | . . . . 1 . Propulsion 4 | . . . . 3 1 Utility 3 | . . . . 3 . Weapon 2 | . . . . 1 1 Parts Attached 39 | 7 3 2 . 9 18 Power 7 | 1 . . . 1 5 Engine 3 | 1 . . . 1 1 Core 4 | . . . . . 4 Reactor . | . . . . . . Propulsion 14 | 2 . . . 5 7 Treads . | . . . . . . Leg 3 | . . . . 2 1 Wheel 8 | 2 . . . 3 3 Hover 1 | . . . . . 1 Flight 2 | . . . . . 2 Utility 7 | 1 1 1 . 1 3 Device 5 | . 1 . . 1 3 Storage 1 | 1 . . . . . Processor . | . . . . . . Hackware . | . . . . . . Protection 1 | . . 1 . . . Artifact . | . . . . . . Weapon 11 | 3 2 1 . 2 3 Energy Gun 1 | . 1 . . . . Energy Cannon 3 | . . 1 . . 2 Ballistic Gun 4 | 2 . . . 2 . Ballistic Cannon 1 | . . . . . 1 Launcher 1 | . 1 . . . . Special Weapon 1 | 1 . . . . . Impact Weapon . | . . . . . . Slashing Weapon . | . . . . . . Piercing Weapon . | . . . . . . Special Melee Weapon . | . . . . . . Unidentified Prototypes 1 | . . . . . 1 Parts Lost 30 | . . . . 5 25 Power 5 | . . . . . 5 Propulsion 12 | . . . . 3 9 Utility 6 | . . . . 1 5 Weapon 7 | . . . . 1 6 Highest Loss Streak 13 | . . . . 3 13 To Critical Strikes . | . . . . . . Average Backups 4 | 2 5 5 5 3 3 Power . | . 1 1 1 . . Propulsion . | 1 2 . . . . Utility . | . . 1 2 . . Weapon 2 | . 2 2 2 1 2 Tool/Special . | . . . . . . Unused Backups 5 | . . 4 . . 1 Power . | . . . . . . Propulsion 2 | . . 2 . . . Utility 2 | . . 2 . . . Weapon 1 | . . . . . 1 Tool/Special . | . . . . . . Average Slot Usage (%) 74 | . 93 88 85 80 59 Engine 10 | . 14 14 14 13 6 Leg 3 | . . . . 4 5 Wheel 18 | . 28 28 28 20 9 Flight 1 | . . . . . 2 Device 10 | . 7 4 . 10 16 Storage 4 | . 14 4 . 5 3 Protection 3 | . . 9 14 4 . Energy Gun 2 | . 7 9 . . . Energy Cannon 4 | . . 3 14 6 3 Ballistic Gun 3 | . 10 . . 5 2 Ballistic Cannon 1 | . . . . . 2 Launcher 5 | . 10 14 14 6 . Peak Build Rating 54 | 6 7 10 10 24 54 Average Rating 18 | 5 6 8 10 18 29 On Entrance 7 | . 6 7 10 10 13 Naked Turns 134 | . . . . . 134 Heaviest Build 57 | 12 15 34 34 50 57 Greatest Support 46 | 26 26 26 26 46 38 Greatest Overweight (x) 10 | . . 1 1 3 10 Average Overweight (x) . | . . . 1 . . Largest Inventory Capacity 8 | 8 8 8 5 8 8 Average Capacity 7 | 7 8 5 5 7 7 Most Carried 8 | 4 7 8 5 8 7 Average Carried 4 | 2 5 5 5 4 3 Final Capacity 8 | 8 8 5 5 8 5 Final Carried 8 | 4 7 5 5 8 3 Class Distribution -------------------- 51% | Mutant 16% | Scavenger-Mutant 16% | Scavenger-Skirmisher 8% | Subdweller-Bomber 5% | Scavenger-Bomber Dominant Class ---------------- Mutant | -10/Materials Mutant | -10/Subcaves Mutant | -9/Scraptown Subdweller-Bomber | -6/Factory Scavenger-Mutant | -5/Factory Resources | -11 -10 -10 -9 -6 -5 ----------- Run | Yrd Mat Sub Scr Fac Fac Matter Collected 694 | 282 40 21 10 153 188 Remotely . | . . . . . . Salvage Created 536 | 80 . . . 239 217 Parts 36 | 3 . . . 13 20 Haulers Intercepted . | . . . . . . Recyclers Shooed 5 | 1 . . . 2 2 Parts Field Recycled . | . . . . . . Retrieved Matter . | . . . . . . Parts Self-Destructed 1 | . . 1 . . . Prevented . | . . . . . . Kills | -11 -10 -10 -9 -6 -5 ------- Run | Yrd Mat Sub Scr Fac Fac Combat Hostiles Destroyed 12 | . . . . 6 6 Guns 2 | . . . . 1 1 Cannons 7 | . . . . 3 4 AOE 2 | . . . . 2 . Classes Destroyed 7 | 2 . . . 5 . Worker 4 | . . . . 1 3 Builder 3 | . . . . 2 1 Tunneler 1 | 1 . . . . . Recycler 1 | 1 . . . . . Swarmer 8 | . . . . 3 5 Grunt 2 | . . . . 2 . Programmer 2 | . . . . 1 1 Best Kill Streak 7 | 1 . . . 3 7 Combat Bots Only 5 | . . . . 3 5 Max Kills in Single Turn 3 | 1 . . . 1 3 Gunslinging . | . . . . . . Exploded 1 | . . . . 1 . Melee . | . . . . . . Uniques/NPCs Destroyed . | . . . . . . Combat | -11 -10 -10 -9 -6 -5 -------- Run | Yrd Mat Sub Scr Fac Fac Hostile Shots Fired 267 | . . . . 81 186 Missed 90 | . . . . 27 63 Hits 177 | . . . . 54 123 Projectile 177 | . . . . 54 123 Critical Strikes 4 | . . . . 1 3 Damage Taken 3420 | . . . . 816 2604 Core 1102 | . . . . 96 1006 Absorbed by Shields . | . . . . . . Core Remaining (%) 96 | 100 . . 100 88 . Volleys Fired 63 | 9 . . . 31 23 Largest 4 | 2 . . . 2 4 Hottest 245 | 100 . . . 110 245 Shots Fired 103 | 15 . . . 42 46 Gun 49 | 12 . . . 14 23 Cannon 43 | . . . . 20 23 Launcher 8 | . . . . 8 . Special 3 | 3 . . . . . Kinetic 60 | 12 . . . 14 34 Thermal 35 | 3 . . . 20 12 Explosive 8 | . . . . 8 . Electromagnetic . | . . . . . . Robot Hit Streak 9 | 6 . . . 5 9 Robot Miss Streak 23 | 2 . . . 3 23 Penetration Max . | . . . . . . Secondary Targets . | . . . . . . Shots Hit Robots 55 | 10 . . . 22 23 Core Hits 41 | 3 . . . 17 21 Critical Kills 1 | . . . . . 1 Critical Parts Destroyed . | . . . . . . Critical Strikes 1 | . . . . . 1 Meltdown 1 | . . . . . 1 Melee Attacks . | . . . . . . Impact . | . . . . . . Slashing . | . . . . . . Piercing . | . . . . . . Sneak Attacks . | . . . . . . Combat Hostiles . | . . . . . . Follow-up Attacks . | . . . . . . Damage Inflicted 1471 | 98 . . . 708 665 Guns 445 | 74 . . . 108 263 Cannons 711 | . . . . 359 352 Explosions 241 | . . . . 241 . Melee . | . . . . . . Ramming 50 | . . . . . 50 Kinetic 611 | 74 . . . 108 429 Thermal 569 | 24 . . . 359 186 Explosive 237 | . . . . 237 . Electromagnetic 4 | . . . . 4 . Impact . | . . . . . . Slashing . | . . . . . . Piercing . | . . . . . . Highest Corruption 8 | . 1 1 1 2 8 Average Corruption 2 | . 1 1 1 1 6 Corruption Purged 3 | . . . . . 3 Corruption Blocked . | . . . . . . Effects 16 | . 1 5 1 1 8 Message Errors 2 | . . 1 . 1 . Matter Fused 5 | . . 2 . . 3 Heat Flow Errors 3 | . . 1 . . 2 Energy Discharges 2 | . . 1 . . 1 Data Loss (minor) 2 | . . . 1 . 1 Data Loss (major) 1 | . 1 . . . . Misfires 1 | . . . . . 1 Overload Shots . | . . . . . . Overflow Damage 186 | . . . . 3 183 Projectiles 19 | . . . . 3 16 Explosions 167 | . . . . . 167 Melee . | . . . . . . Knockbacks 5 | . . . . . 5 Impact 1 | . . . . . 1 Kinetic 4 | . . . . . 4 Secondary . | . . . . . . Self-Inflicted Damage 440 | . . . . 81 359 Shots 7 | . . . . 4 3 Rammed 7 | . . . . . 7 Targets Rammed 7 | . . . . . 7 Kicked . | . . . . . . Crushed . | . . . . . . Highest Temperature 438 | 60 . 79 . 42 438 Average Temperature 95 | 26 . 59 . 17 146 Received Heat Transfer 363 | . . . . 132 231 Effects 7 | . . . . . 7 Shutdowns 2 | . . . . . 2 Energy Bleed 1 | . . . . . 1 Damage (major) 4 | . . . . . 4 Siege Activations . | . . . . . . Martial Activations . | . . . . . . Shielding Activations . | . . . . . . Robots Disrupted . | . . . . . . Combat Hostiles . | . . . . . . Robots Corrupted . | . . . . . . Combat Hostiles . | . . . . . . Parts Fried . | . . . . . . Impact Corruptions . | . . . . . . Robots Melted 1 | . . . . . 1 Combat Hostiles 1 | . . . . . 1 Parts Melted 3 | 1 . . . 1 1 Heat Transferred 818 | 50 . . . 481 287 Parts Sabotaged . | . . . . . . Parts Stolen . | . . . . . . Parts Stripped . | . . . . . . Power Chain Reactions . | . . . . . . Alert | -11 -10 -10 -9 -6 -5 ------- Run | Yrd Mat Sub Scr Fac Fac Maximum Alert Level 1 | . . . . 1 . Low Security (%) 93 | 100 100 . . 74 100 Level 1 6 | . . . . 25 . Level 2 . | . . . . . . Level 3 . | . . . . . . Level 4 . | . . . . . . Level 5 . | . . . . . . High Security . | . . . . . . Max Security . | . . . . . . Peak Influence 393 | 5 5 . . 393 175 Initial 175 | . . . . . 175 Average 75 | 1 . . . 127 84 Influence Increases 1064 | 10 5 . . 534 515 Destroy 0b10 Robot/C 240 | . . . . 120 120 Destroy 0b10 Robot/NC 45 | 10 . . . 15 20 Destroy Leader 50 | . . . . 30 20 Successful Hack 19 | . 5 . . . 14 Disable Machine 225 | . . . . 150 75 Destroy Structure 155 | . . . . 69 86 Lose Combat Pursuer 330 | . . . . 150 180 Influence Decreases 958 | 10 5 . . 176 767 Entered New Map 183 | . . . . . 183 Time Decay 475 | 10 5 . . 126 334 Lost Part 300 | . . . . 50 250 Squads Dispatched 8 | . 1 . . 3 4 Investigation 1 | . 1 . . . . Extermination 3 | . . . . 1 2 Reinforcement 4 | . . . . 2 2 Assault . | . . . . . . Garrison . | . . . . . . Intercept . | . . . . . . Searches Triggered . | . . . . . . Construction Impeded 1 | . . . . 1 . Haulers Reinforced . | . . . . . . Active Scanning Responses . | . . . . . . Cargo Convoy Interrupts . | . . . . . . Stealth | -11 -10 -10 -9 -6 -5 --------- Run | Yrd Mat Sub Scr Fac Fac Distress Signals 5 | . 1 . . 2 2 Communications Jammed . | . . . . . . Distress Signals . | . . . . . . Times Spotted 66 | . 3 2 . 26 35 Peak Tracking Total 13 | . 3 2 . 13 8 Tactical Retreats 11 | . . . . 3 8 Traps | -11 -10 -10 -9 -6 -5 ------- Run | Yrd Mat Sub Scr Fac Fac Traps Triggered 1 | . . . . . 1 Indirectly . | . . . . . . Trap Hack Attempts . | . . . . . . Triggered . | . . . . . . Disarmed . | . . . . . . Reprogrammed . | . . . . . . Reused . | . . . . . . Traps Extracted . | . . . . . . Installed . | . . . . . . Triggered . | . . . . . . Machines | -11 -10 -10 -9 -6 -5 ---------- Run | Yrd Mat Sub Scr Fac Fac Machines Disabled 15 | . . . . 10 5 Max in Single Turn 3 | . . . . 3 2 Machines Repaired . | . . . . . . Machines Dismantled . | . . . . . . Machines Sabotaged . | . . . . . . Overloaded Fab Kills . | . . . . . . Hacking | -11 -10 -10 -9 -6 -5 --------- Run | Yrd Mat Sub Scr Fac Fac Machines Accessed 3 | . 2 . . . 1 Terminals 2 | . 2 . . . . Fabricators 1 | . . . . . 1 Repair Stations . | . . . . . . Recycling Units . | . . . . . . Scanalyzers . | . . . . . . Garrison Access . | . . . . . . Total Hacks 6 | . 5 . . . 1 Successful 3 | . 2 . . . 1 Failed 3 | . 3 . . . . Catastrophic . | . . . . . . Database Lockouts . | . . . . . . Manual 4 | . 4 . . . . Terminals 5 | . 5 . . . . Fabricators 1 | . . . . . 1 Repair Stations . | . . . . . . Recycling Units . | . . . . . . Scanalyzers . | . . . . . . Garrison Access . | . . . . . . Terminal Hacks 2 | . 2 . . . . Robot Analysis 1 | . 1 . . . . Zone Layout 1 | . 1 . . . . Fabricator Hacks 1 | . . . . . 1 Build 1 | . . . . . 1 Repair Station Hacks . | . . . . . . Recycling Unit Hacks . | . . . . . . Scanalyzer . | . . . . . . Garrison Access Hacks . | . . . . . . Unauthorized Hacks . | . . . . . . Terminals . | . . . . . . Fabricators . | . . . . . . Repair Stations . | . . . . . . Recycling Units . | . . . . . . Scanalyzers . | . . . . . . Garrison Access . | . . . . . . Data Cores Recovered . | . . . . . . Used . | . . . . . . Hacking Detections 3 | . 2 . . . 1 Full Trace Events 1 | . 1 . . . . Feedback Events 1 | . 1 . . . . Corruption 1 | . 1 . . . . Feedback Blocked . | . . . . . . Robot Schematics Acquired . | . . . . . . Robots Built . | . . . . . . Authchips . | . . . . . . Time . | . . . . . . Total Robot Build Rating . | . . . . . . Part Schematics Acquired . | . . . . . . Parts Built 2 | . . . . . 2 Authchips . | . . . . . . Time 64 | . . . . . 64 Total Part Build Rating 16 | . . . . . 16 Parts Repaired . | . . . . . . Time . | . . . . . . Parts Recycled . | . . . . . . Recycled Matter . | . . . . . . Retrieved Matter . | . . . . . . Retrieved Components . | . . . . . . Parts Scanalyzed . | . . . . . . Part Schematics Acquired . | . . . . . . Parts Damaged . | . . . . . . Bothacking | -11 -10 -10 -9 -6 -5 ------------ Run | Yrd Mat Sub Scr Fac Fac Used RIF Installer . | . . . . . . Robots Hacked . | . . . . . . Non-combat . | . . . . . . Combat . | . . . . . . Robot Hacks Applied . | . . . . . . Relay Couplers Released . | . . . . . . Fabnet Peak Effective % . | . . . . . . Robots Rewired . | . . . . . . Allies Hacked . | . . . . . . Hacks Repelled . | . . . . . . Allies | -11 -10 -10 -9 -6 -5 -------- Run | Yrd Mat Sub Scr Fac Fac Total Allies . | . . . . . . Largest Group . | . . . . . . Highest-Rated Group . | . . . . . . Highest-Rated Ally . | . . . . . . Total Orders . | . . . . . . Ally Attacks . | . . . . . . Total Damage . | . . . . . . Kills . | . . . . . . Allies Corrupted . | . . . . . . Allies Melted . | . . . . . . Intel | -11 -10 -10 -9 -6 -5 ------- Run | Yrd Mat Sub Scr Fac Fac Active Infowar (turns) 756 | . . . . 256 500 Structural 543 | . . . . 256 287 ECM 372 | . . . . . 372 Robot Analysis Total 1 | . 1 . . . . Derelict Logs Recovered . | . . . . . . Drone Launches . | . . . . . . Drone Recoveries . | . . . . . . Exploration | -11 -10 -10 -9 -6 -5 ------------- Run | Yrd Mat Sub Scr Fac Fac Turns Passed 1890 | 125 204 235 198 346 782 Spaces Moved 1652 | 92 211 195 189 255 710 Core 339 | 2 . . . . 337 Treads . | . . . . . . Legs 19 | . . . . 1 18 Wheels 1258 | 90 211 195 189 254 319 Hover 36 | . . . . . 36 Flight . | . . . . . . Fastest Speed 50 | 50 90 90 105 85 50 Average Speed 88 | 88 90 101 105 97 76 Slowest Speed 550 | 90 90 105 105 330 550 Overloaded Moves . | . . . . . . Propulsion Burnouts . | . . . . . . Robots Hopped . | . . . . . . Potential Cave-ins . | . . . . . . Cave-ins Triggered . | . . . . . . Exploration Rate (%) 19 | 6 32 21 26 10 21 Regions Visited 5 Branch Regions 2 Pre-discovered Areas 1 | . . . 1 . . Known Exits Taken . | . . . . . . Unknown Exits Taken 5 | 1 1 1 1 1 . Scrap Searched 2 | . . . 2 . . Spaces Dug . | . . . . . . Terrain Destroyed 123 | 1 . . . 72 50 Melee . | . . . . . . Projectile 5 | 1 . . . 2 2 AOE 118 | . . . . 70 48 Terrain Rammed . | . . . . . . Walls Destroyed . | . . . . . . Machines Disabled . | . . . . . . Actions | -11 -10 -10 -9 -6 -5 --------- Run | Yrd Mat Sub Scr Fac Fac Total 1978 | 113 224 237 188 307 909 Wait 162 | . 7 24 . 3 128 Move 1647 | 91 210 194 188 254 710 Hop . | . . . . . . Pick Up 21 | 4 2 7 . 5 3 Fast Attach 25 | 6 2 1 . 4 12 Attach 22 | 1 1 1 . 5 14 Detach 7 | 1 2 . . . 4 Swap 10 | 1 . . . 4 5 Drop 12 | . . 8 . 1 3 Fire 63 | 9 . . . 31 23 Melee . | . . . . . . Ram 7 | . . . . . 7 Kick . | . . . . . . Crush . | . . . . . . Escape Stasis . | . . . . . . Rewire . | . . . . . . Trap . | . . . . . . Miscellaneous 2 | . . 2 . . . Route ------- -11/Scrapyard -10/Materials -10/Subcaves -9/Scraptown -6/Factory -5/Factory History --------- Turn | Location | Event 12 | -11/Scrapyard | Discovered new exit (range 16) 126 | -11/Scrapyard | Entered Materials 127 | -10/Materials | Met a group of wandering Federalists 311 | -10/Materials | Build established: Mutant 328 | -10/Materials | Discovered new exit (range 3) 330 | -10/Materials | Entered Subcaves 331 | -10/Subcaves | Continued accompanying wandering Federalists (5) 331 | -10/Subcaves | Approached by a straggling Scientist 532 | -10/Subcaves | A swath of the cavern ceiling suddenly collapsed 545 | -10/Subcaves | Wandering Federalist uncovered a shortcut to Scraptown 565 | -10/Subcaves | Entered Scraptown 667 | -9/Scraptown | Learned location of Extension (-5) 687 | -9/Scraptown | Heard Great Nut preacher, LISTEN AND RECITE! 690 | -9/Scraptown | Visited Comm Corps 754 | -9/Scraptown | Discovered new exit (range 5) 763 | -9/Scraptown | Entered Factory 763 | -6/Factory | Evolved 8 slots: Power x1, Propulsion x3, Utility x3, Weapon x1 1097 | -6/Factory | Discovered new exit (range 15) 1109 | -6/Factory | Entered another Factory area 1109 | -5/Factory | Evolved 2 slots: Propulsion x1, Weapon x1 1140 | -5/Factory | Lost 3 parts (2n1w) 1231 | -5/Factory | Fabricated Adv. Recalibrator? 1657 | -5/Factory | Lost 13 parts (1p7n1u4w) 1703 | -5/Factory | Core integrity fell below 50% 1736 | -5/Factory | Lost 9 parts (3p1n4u1w) 1802 | -5/Factory | Core integrity fell below 20% 1891 | -5/Factory | Destroyed by P-70 Sage with Tesla Rifle Last Messages --------------- Adv. System Restoration Module expended. K-01 Serf cleans the Pressure Siphon. U-05 Engineer works on Pressure Siphon. K-01 Serf cleans the Pressure Siphon. K-01 Serf collects debris. Acquired Mic. Fission Core. U-05 Engineer works on Pressure Siphon. K-01 Serf collects debris. Slammed into K-01 Serf. K-01 Serf destroyed. Acquired 19 matter. Acquired Wheel. Slammed into K-01 Serf. K-01 Serf cleans the Neutrino Reactor. Acquired Hvy. Plasma Cannon. ALERT: Potential suspicious activity detected, Programmers report to Factory Zone 8W. K-01 Serf cleans the Neutrino Reactor. K-01 Serf cleans the TF Node. W-25 Informer sends out distress signal. Map ----- +----------------------------------------------------+ | ?????????????????????????????????????????????????? | | ?????????????????????????????????????????????????? | | ?????????????????????????????????????????????????? | | ?????????????????????????????????????????????????? | | ?????????????????????????????????????????????????? | | ?????????????????????????????????????????????????? | | ?????????????????????????????????????????????????? | | ?????????????????????????????????????????????????? | | ?????????????????????????????????????????????????? | | ?????????????????????????????????????????????????? | | ?????????????????????????????????????????????????? | | ?????????????????????????????????????????????????? | | ?????????????????????????????????????????????????? | | ?????????????????????????????????????????????????? | | ?????????????????????????????????????????????????? | | ?????????????????????????????????????????????????? | | ?????????????????????????????????????????????????? | | ?????????????????????????????????????????????????? | | ?????????????????????????????????????????????????? | | ?????????????????????????????????????????????????? | | ?????????????????????????????????????????????????? | | ?????????????????????????????????????????????????? | | ?????????????????????????????????????????????????? | | ?????????????????????????????????????????????????? | | ????????????????################?????????????????? | | ????????????????# @ #?????????????????? | | ????????????????# """ #?????????????????? | | ????????????????# """ """ """ +?????????????????? | | ????????????????# """ """ F" #?????????????????? | | ????????????????# """ """p "" #?????????????????? | | ????????????????# p p #?????????????????? | | ?#####################+#########?????????????????? | | ?# ! ! # #######?????????????????? | | ?# # ?????????????? | | ?# """ """ """ """ + " ????????????? | | ?# """ """ """ """ # ?????????????? | | ?# """ """ """ """ # ####### ?????????????? | | ?# #######???????????????????????? | | ?# #?????????????????????????????? | | ?###########+#######?????????????????????????????? | | ???????????# #???????????????????????????????????? | | ???????????# #???????????????????????????????????? | | ???????????# #???????????????????????????????????? | | ???????????# #???????????????????????????????????? | | ???????????# #???????????????????????????????????? | | ???????????# #???????????????????????????????????? | | ???????????# #???????????????????????????????????? | | ???????????# #???????????????????????????????????? | | ???????????# #???????????????????????????????????? | | ???????????# #???????????????????????????????????? | +----------------------------------------------------+ Best States ------------- Heat Dissipation 50 Energy Generation 27 Energy Capacity 400 Matter Stores 300 Matter Capacity 300 Sight Range 16 Terrain Scan Density 10 ECM Strength 2 Armor Coverage 800 Evasion (%) 70 Item Schematics ----------------- None Robot Schematics ------------------ None Fabricated ------------ Adv. Recalibrator | x2 | -5/Factory | Preloaded Repaired ---------- Nothing Alien Tech Used ----------------- None Achievements -------------- None Challenges ------------ None Game ------ Seed VariableNanofilamentsLaser Manual? 0 Play Time 00:35:38 Cumulative 35.9 hours Start 2025.08.21 @ 02:07:53 End 2025.08.21 @ 02:44:27 Sessions 1 Manual Loads 0 Difficulty Rogue Special Mode None Game No. 65 Rogue 65 Adventurer 0 Explorer 0 Win Type - Total 0 Types 0/0/0/0/0/0/0/0/0/0 Lore% 25 Gallery% 27 Achievement% 23 Wizard Run 0 Options --------- Layout 1 ASCII 0 Keyboard 0 Movement Mouse Keybinds 0 Fullscreen 1 Font 24/Smallcaps Map View 50x35 Zoom Use 0% Tactical HUD 0 Map Filters NONE Filters NONE Steam 1 RUN: cfc69d6b-fc8c-4ea6-a383-8cd054020773